[Event "*** SCC Grand Prix: Titled Tuesday Blitz"]
[Site "Chess.com"]
[Date "2020.06.02"]
[Round "2"]
[White "chessfrendz"]
[Black "timedothwasteme"]
[Result "1-0"]
[WhiteElo "2401"]
[BlackElo "2144"]
[TimeControl "180+1"]
[EndTime "10:18:32 PDT"]
[Termination "chessfrendz won by resignation"]

1. d4 {[%clk 0:03:00.9]} 1... Nf6 {[%clk 0:02:58.6]} 2. Nf3 {[%clk 0:03:00.4]}
2... g6 {[%clk 0:02:57.8]} 3. c4 {[%clk 0:02:59.5]} 3... Bg7 {[%clk 0:02:57.3]}
4. Nc3 {[%clk 0:03:00]} 4... O-O {[%clk 0:02:56.8]} 5. e4 {[%clk 0:03:00.5]}
5... d6 {[%clk 0:02:57.1]} 6. Be2 {[%clk 0:03:01]} 6... e5 {[%clk 0:02:57]} 7.
O-O {[%clk 0:03:00.5]} 7... Nc6 {[%clk 0:02:57.6]} 8. d5 {[%clk 0:02:59.1]} 8...
Ne7 {[%clk 0:02:58]} 9. Ne1 {[%clk 0:02:59.6]} 9... Ne8 {[%clk 0:02:52]} 10. Be3
{[%clk 0:02:58.8]} 10... f5 {[%clk 0:02:51.5]} 11. f3 {[%clk 0:02:58.6]} 11...
f4 {[%clk 0:02:51.9]} 12. Bf2 {[%clk 0:02:58.7]} 12... g5 {[%clk 0:02:52.5]} 13.
c5 {[%clk 0:02:58.1]} 13... Ng6 {[%clk 0:02:52.2]} 14. cxd6 {[%clk 0:02:57.4]}
14... Nxd6 {[%clk 0:02:51.8]} 15. a4 {[%clk 0:02:53.1]} 15... a6 {[%clk
0:02:50.3]} 16. Bc5 {[%clk 0:02:37]} 16... h5 {[%clk 0:02:34.3]} 17. h3 {[%clk
0:02:33.1]} 17... Rf7 {[%clk 0:02:33.9]} 18. a5 {[%clk 0:02:28.3]} 18... Bd7
{[%clk 0:02:31.3]} 19. Nd3 {[%clk 0:02:23.1]} 19... Bf8 {[%clk 0:02:05.1]} 20.
Nf2 {[%clk 0:02:20.2]} 20... Rg7 {[%clk 0:02:00.1]} 21. Qb3 {[%clk 0:02:16.1]}
21... Rb8 {[%clk 0:01:46.3]} 22. Rfd1 {[%clk 0:02:13.2]} 22... g4 {[%clk
0:00:49.6]} 23. fxg4 {[%clk 0:02:12.1]} 23... hxg4 {[%clk 0:00:48.3]} 24. Bxg4
{[%clk 0:02:09.5]} 24... Nh4 {[%clk 0:00:35.7]} 25. Rd3 {[%clk 0:01:59.2]} 25...
Qg5 {[%clk 0:00:33.4]} 26. Kf1 {[%clk 0:01:53.5]} 26... b6 {[%clk 0:00:29.9]}
27. axb6 {[%clk 0:01:52.1]} 27... cxb6 {[%clk 0:00:30.8]} 28. Bxd6 {[%clk
0:01:48.3]} 28... Bxd6 {[%clk 0:00:31.7]} 29. Rxa6 {[%clk 0:01:42.1]} 29... Bc5
{[%clk 0:00:26.5]} 30. d6+ {[%clk 0:01:39.7]} 30... Kh7 {[%clk 0:00:26.1]} 31.
Ncd1 {[%clk 0:01:38.1]} 31... f3 {[%clk 0:00:22.6]} 32. gxf3 {[%clk 0:01:12.5]}
32... Rf8 {[%clk 0:00:22.3]} 33. Ra7 {[%clk 0:01:04]} 33... Bxg4 {[%clk
0:00:21.5]} 34. Rxg7+ {[%clk 0:01:02.8]} 34... Qxg7 {[%clk 0:00:22.4]} 35. fxg4
{[%clk 0:00:52.4]} 35... Qf6 {[%clk 0:00:16.2]} 36. Rd2 {[%clk 0:00:31.4]} 36...
Nf3 {[%clk 0:00:16.3]} 37. Rc2 {[%clk 0:00:29]} 37... Nd4 {[%clk 0:00:16]} 38.
Qc3 {[%clk 0:00:25.2]} 38... Nxc2 {[%clk 0:00:15.9]} 39. Qxc2 {[%clk 0:00:25.1]}
39... Qxd6 {[%clk 0:00:15.7]} 40. Qe2 {[%clk 0:00:24.6]} 40... Qf6 {[%clk
0:00:15.4]} 41. Kg2 {[%clk 0:00:23.9]} 41... Qf4 {[%clk 0:00:15]} 42. Nd3 {[%clk
0:00:23.4]} 42... Qg5 {[%clk 0:00:15]} 43. Nc3 {[%clk 0:00:21.6]} 43... Bd4
{[%clk 0:00:14.6]} 44. Nd5 {[%clk 0:00:20.9]} 44... Rf7 {[%clk 0:00:12.8]} 45.
N5b4 {[%clk 0:00:17.2]} 45... Kg6 {[%clk 0:00:12.7]} 46. Nd5 {[%clk 0:00:17]}
46... Kh6 {[%clk 0:00:12.1]} 47. b4 {[%clk 0:00:15]} 47... Rf8 {[%clk
0:00:09.5]} 48. b5 {[%clk 0:00:13.9]} 48... Qh4 {[%clk 0:00:08.8]} 49. N5b4
{[%clk 0:00:11.4]} 49... Rc8 {[%clk 0:00:06]} 50. Nc6 {[%clk 0:00:10.7]} 50...
Qg5 {[%clk 0:00:05.9]} 51. Nxd4 {[%clk 0:00:10.3]} 51... exd4 {[%clk 0:00:06.5]}
52. e5 {[%clk 0:00:09.6]} 52... Re8 {[%clk 0:00:06.4]} 53. e6 {[%clk 0:00:09.2]}
53... Qf6 {[%clk 0:00:06.3]} 54. Qd2+ {[%clk 0:00:07.6]} 54... Kg7 {[%clk
0:00:06.6]} 55. Nf4 {[%clk 0:00:07.5]} 55... Rf8 {[%clk 0:00:06.6]} 56. Nh5+
{[%clk 0:00:07.4]} 1-0

[Event "*** SCC Grand Prix: Titled Tuesday Blitz"]
[Site "Chess.com"]
[Date "2020.06.02"]
[Round "2"]
[White "gumimis"]
[Black "Savva09022009"]
[Result "0-1"]
[WhiteElo "2138"]
[BlackElo "2398"]
[TimeControl "180+1"]
[EndTime "10:18:32 PDT"]
[Termination "Savva09022009 won on time"]

1. e4 {[%clk 0:03:00.8]} 1... c5 {[%clk 0:02:58.3]} 2. Nf3 {[%clk 0:03:00.9]}
2... Nc6 {[%clk 0:02:58.7]} 3. d4 {[%clk 0:03:01.2]} 3... cxd4 {[%clk
0:02:59.6]} 4. Nxd4 {[%clk 0:03:02]} 4... Nf6 {[%clk 0:02:59.3]} 5. Nc3 {[%clk
0:03:02]} 5... d6 {[%clk 0:02:59.1]} 6. Bg5 {[%clk 0:03:01.9]} 6... e6 {[%clk
0:02:58.1]} 7. f4 {[%clk 0:03:01]} 7... h6 {[%clk 0:02:52.7]} 8. Bh4 {[%clk
0:02:53.4]} 8... Be7 {[%clk 0:02:51.7]} 9. Bf2 {[%clk 0:02:38.7]} 9... O-O
{[%clk 0:02:48]} 10. Qf3 {[%clk 0:02:38.2]} 10... Qc7 {[%clk 0:02:35.1]} 11. Bd3
{[%clk 0:02:36.2]} 11... a6 {[%clk 0:02:33.6]} 12. O-O {[%clk 0:02:35.9]} 12...
Nxd4 {[%clk 0:02:32.1]} 13. Bxd4 {[%clk 0:02:35.8]} 13... e5 {[%clk 0:02:33]}
14. Be3 {[%clk 0:02:31.3]} 14... b5 {[%clk 0:02:26.1]} 15. a3 {[%clk 0:02:23.1]}
15... Bb7 {[%clk 0:02:24.4]} 16. Rad1 {[%clk 0:02:00.2]} 16... Rad8 {[%clk
0:02:17.8]} 17. h3 {[%clk 0:01:54.7]} 17... Rfe8 {[%clk 0:02:12]} 18. Qf2 {[%clk
0:01:51.8]} 18... Nd7 {[%clk 0:02:03.7]} 19. fxe5 {[%clk 0:01:45]} 19... Rf8
{[%clk 0:01:52.3]} 20. exd6 {[%clk 0:01:39.4]} 20... Bxd6 {[%clk 0:01:53.2]} 21.
Nd5 {[%clk 0:01:24.8]} 21... Bxd5 {[%clk 0:01:50.1]} 22. exd5 {[%clk 0:01:25]}
22... Bc5 {[%clk 0:01:46.8]} 23. Kh1 {[%clk 0:01:18.7]} 23... Bxe3 {[%clk
0:01:42.7]} 24. Qxe3 {[%clk 0:01:19]} 24... Nb6 {[%clk 0:01:41.4]} 25. Be4
{[%clk 0:01:10.8]} 25... Rfe8 {[%clk 0:01:35.4]} 26. Qd4 {[%clk 0:01:08.6]}
26... Re5 {[%clk 0:01:20.6]} 27. d6 {[%clk 0:00:54.2]} 27... Qc5 {[%clk
0:01:16.9]} 28. Qxc5 {[%clk 0:00:45.4]} 28... Rxc5 {[%clk 0:01:17.8]} 29. Rd4
{[%clk 0:00:36]} 29... Nc4 {[%clk 0:01:14.2]} 30. Bd5 {[%clk 0:00:26.6]} 30...
Nxd6 {[%clk 0:01:02.3]} 31. Bb3 {[%clk 0:00:16.9]} 31... Rc7 {[%clk 0:00:43.9]}
32. Rfd1 {[%clk 0:00:11.5]} 32... Rcd7 {[%clk 0:00:43.7]} 33. a4 {[%clk
0:00:11.4]} 33... Kf8 {[%clk 0:00:28.8]} 34. axb5 {[%clk 0:00:11.2]} 34... axb5
{[%clk 0:00:29.7]} 35. c4 {[%clk 0:00:11.5]} 35... Ke8 {[%clk 0:00:25.4]} 36.
Re1+ {[%clk 0:00:10.6]} 36... Re7 {[%clk 0:00:24.5]} 37. Rxe7+ {[%clk
0:00:10.4]} 37... Kxe7 {[%clk 0:00:25.4]} 38. cxb5 {[%clk 0:00:10.3]} 38... Rb8
{[%clk 0:00:23.4]} 39. Rd5 {[%clk 0:00:09.3]} 39... Nxb5 {[%clk 0:00:21.7]} 40.
Bc4 {[%clk 0:00:08.8]} 40... Nd6 {[%clk 0:00:21.1]} 41. b3 {[%clk 0:00:08.5]}
41... Rc8 {[%clk 0:00:19.6]} 42. Rd4 {[%clk 0:00:08.1]} 42... f5 {[%clk
0:00:17.8]} 43. Kh2 {[%clk 0:00:07.6]} 43... g5 {[%clk 0:00:16.4]} 44. Kg3
{[%clk 0:00:06.9]} 44... f4+ {[%clk 0:00:16.3]} 45. Kf3 {[%clk 0:00:07]} 45...
Nf5 {[%clk 0:00:15.5]} 46. Rd5 {[%clk 0:00:05.9]} 46... Kf6 {[%clk 0:00:15.2]}
47. Ra5 {[%clk 0:00:04.1]} 47... Rd8 {[%clk 0:00:14.2]} 48. Ra6+ {[%clk
0:00:04.1]} 48... Ke5 {[%clk 0:00:12.3]} 49. Ra5+ {[%clk 0:00:02.3]} 49... Kf6
{[%clk 0:00:10.3]} 50. b4 {[%clk 0:00:01.8]} 50... Rd4 {[%clk 0:00:09.1]} 0-1

[Event "*** SCC Grand Prix: Titled Tuesday Blitz"]
[Site "Chess.com"]
[Date "2020.06.02"]
[Round "2"]
[White "Jenia84"]
[Black "Gyapiking"]
[Result "1-0"]
[WhiteElo "2225"]
[BlackElo "2517"]
[TimeControl "180+1"]
[EndTime "10:18:34 PDT"]
[Termination "Jenia84 won by resignation"]

1. Nf3 {[%clk 0:02:56.3]} 1... d5 {[%clk 0:02:24]} 2. d4 {[%clk 0:02:53.5]} 2...
Nf6 {[%clk 0:02:22.2]} 3. Bf4 {[%clk 0:02:52.1]} 3... c5 {[%clk 0:02:20.5]} 4.
c3 {[%clk 0:02:50.7]} 4... Nc6 {[%clk 0:02:20]} 5. e3 {[%clk 0:02:49.5]} 5...
Qb6 {[%clk 0:02:19.4]} 6. Qb3 {[%clk 0:02:47.8]} 6... c4 {[%clk 0:02:19.3]} 7.
Qc2 {[%clk 0:02:46.7]} 7... Bf5 {[%clk 0:02:18.8]} 8. Qc1 {[%clk 0:02:46.1]}
8... e6 {[%clk 0:02:18.9]} 9. Nbd2 {[%clk 0:02:46.3]} 9... h6 {[%clk 0:02:18.9]}
10. Be2 {[%clk 0:02:39.8]} 10... Be7 {[%clk 0:02:18.8]} 11. Ne5 {[%clk
0:02:39.5]} 11... Nxe5 {[%clk 0:02:13.7]} 12. Bxe5 {[%clk 0:02:39.1]} 12... O-O
{[%clk 0:02:13.1]} 13. O-O {[%clk 0:02:39.2]} 13... Rfc8 {[%clk 0:02:12.3]} 14.
f3 {[%clk 0:02:38.7]} 14... Qd8 {[%clk 0:02:11.8]} 15. Qe1 {[%clk 0:02:27.6]}
15... b5 {[%clk 0:02:10.9]} 16. e4 {[%clk 0:01:46.8]} 16... Bg6 {[%clk
0:02:06.2]} 17. Qg3 {[%clk 0:01:00.9]} 17... b4 {[%clk 0:01:57.7]} 18. Rae1
{[%clk 0:00:59.7]} 18... Nh5 {[%clk 0:01:51.1]} 19. Qh3 {[%clk 0:00:56.5]} 19...
Bd6 {[%clk 0:01:46.2]} 20. f4 {[%clk 0:00:52]} 20... Bxe5 {[%clk 0:01:28.1]} 21.
fxe5 {[%clk 0:00:51.2]} 21... Qg5 {[%clk 0:01:25.6]} 22. Nf3 {[%clk 0:00:47.8]}
22... Qe3+ {[%clk 0:01:25.1]} 23. Rf2 {[%clk 0:00:39.7]} 23... Nf4 {[%clk
0:01:25.1]} 24. Qg3 {[%clk 0:00:36.8]} 24... Nh5 {[%clk 0:01:04]} 25. Qh4 {[%clk
0:00:32.5]} 25... bxc3 {[%clk 0:00:59.4]} 26. bxc3 {[%clk 0:00:31.8]} 26... Qxc3
{[%clk 0:00:57.9]} 27. exd5 {[%clk 0:00:31.2]} 27... exd5 {[%clk 0:00:57.1]} 28.
Ref1 {[%clk 0:00:30.1]} 28... Rab8 {[%clk 0:00:53]} 29. e6 {[%clk 0:00:29]}
29... Nf6 {[%clk 0:00:47.2]} 30. exf7+ {[%clk 0:00:27]} 30... Bxf7 {[%clk
0:00:47.1]} 31. Ne5 {[%clk 0:00:26.8]} 31... Rf8 {[%clk 0:00:45.3]} 32. Nxf7
{[%clk 0:00:25.8]} 32... Rxf7 {[%clk 0:00:42.9]} 33. Rxf6 {[%clk 0:00:22.4]}
33... Rxf6 {[%clk 0:00:39.2]} 34. Rxf6 {[%clk 0:00:22.2]} 34... Rb1+ {[%clk
0:00:35.3]} 35. Rf1 {[%clk 0:00:21.7]} 35... Qe3+ {[%clk 0:00:35.2]} 36. Kh1
{[%clk 0:00:21.6]} 36... Rxf1+ {[%clk 0:00:32]} 37. Bxf1 {[%clk 0:00:21.2]}
37... c3 {[%clk 0:00:32.3]} 38. Qg4 {[%clk 0:00:14.3]} 38... Qe1 {[%clk
0:00:24.6]} 39. Kg1 {[%clk 0:00:12.5]} 39... Qe3+ {[%clk 0:00:21.7]} 40. Kh1
{[%clk 0:00:11]} 40... Qf2 {[%clk 0:00:21.7]} 41. Qe6+ {[%clk 0:00:08.2]} 41...
Kh8 {[%clk 0:00:20.1]} 42. Bd3 {[%clk 0:00:08]} 42... Qf8 {[%clk 0:00:14.8]} 43.
Qf5 {[%clk 0:00:07.4]} 43... Qxf5 {[%clk 0:00:12.8]} 44. Bxf5 {[%clk 0:00:08.3]}
44... Kg8 {[%clk 0:00:09.8]} 45. Bc2 {[%clk 0:00:09.2]} 45... Kf7 {[%clk
0:00:09.9]} 46. g3 {[%clk 0:00:10.1]} 46... Ke7 {[%clk 0:00:10]} 47. Kg2 {[%clk
0:00:11]} 47... Kd6 {[%clk 0:00:10.4]} 48. Kf3 {[%clk 0:00:11.9]} 48... Kc6
{[%clk 0:00:10.7]} 49. Ke3 {[%clk 0:00:12.6]} 49... Kb5 {[%clk 0:00:11]} 50. Kd3
{[%clk 0:00:13.3]} 50... Kb4 {[%clk 0:00:11.2]} 51. Bb3 {[%clk 0:00:13.6]} 51...
a5 {[%clk 0:00:10.9]} 52. Bxd5 {[%clk 0:00:13.4]} 52... a4 {[%clk 0:00:09.3]}
53. Kc2 {[%clk 0:00:13.8]} 53... g5 {[%clk 0:00:06.4]} 54. Bg8 {[%clk
0:00:14.3]} 54... h5 {[%clk 0:00:06.2]} 55. h4 {[%clk 0:00:14.7]} 55... gxh4
{[%clk 0:00:06]} 56. gxh4 {[%clk 0:00:14.3]} 56... Ka3 {[%clk 0:00:06.2]} 57.
Bf7 {[%clk 0:00:13.9]} 57... Kb4 {[%clk 0:00:05.6]} 58. Bxh5 {[%clk 0:00:13.8]}
58... Ka3 {[%clk 0:00:05.9]} 59. Be8 {[%clk 0:00:14.2]} 59... Kb4 {[%clk
0:00:06.3]} 60. Bxa4 {[%clk 0:00:13.9]} 60... Kxa4 {[%clk 0:00:05.5]} 61. Kxc3
{[%clk 0:00:14.4]} 1-0

[Event "*** SCC Grand Prix: Titled Tuesday Blitz"]
[Site "Chess.com"]
[Date "2020.06.02"]
[Round "2"]
[White "mjray79"]
[Black "gurelediz"]
[Result "0-1"]
[WhiteElo "2300"]
[BlackElo "2600"]
[TimeControl "180+1"]
[EndTime "10:18:34 PDT"]
[Termination "gurelediz won by checkmate"]

1. d4 {[%clk 0:03:00.9]} 1... Nf6 {[%clk 0:02:59.4]} 2. c4 {[%clk 0:03:01.4]}
2... g6 {[%clk 0:02:56.7]} 3. Nc3 {[%clk 0:03:00.7]} 3... d5 {[%clk 0:02:56.9]}
4. cxd5 {[%clk 0:03:01.6]} 4... Nxd5 {[%clk 0:02:57.8]} 5. e4 {[%clk 0:03:02]}
5... Nxc3 {[%clk 0:02:58.2]} 6. bxc3 {[%clk 0:03:02.9]} 6... Bg7 {[%clk
0:02:58.8]} 7. Bc4 {[%clk 0:03:03.5]} 7... c5 {[%clk 0:02:57.8]} 8. Be3 {[%clk
0:03:03.8]} 8... Nc6 {[%clk 0:02:57.3]} 9. Ne2 {[%clk 0:03:04.1]} 9... O-O
{[%clk 0:02:56]} 10. O-O {[%clk 0:03:04.4]} 10... Na5 {[%clk 0:02:55.1]} 11. Bd3
{[%clk 0:03:03.2]} 11... b6 {[%clk 0:02:50.3]} 12. h4 {[%clk 0:03:02.2]} 12...
Bb7 {[%clk 0:02:48.3]} 13. h5 {[%clk 0:03:01.9]} 13... Rc8 {[%clk 0:02:46.9]}
14. hxg6 {[%clk 0:02:58.7]} 14... hxg6 {[%clk 0:02:46.2]} 15. Rc1 {[%clk
0:02:56.2]} 15... Qd7 {[%clk 0:02:43.1]} 16. d5 {[%clk 0:02:38.7]} 16... c4
{[%clk 0:02:36.6]} 17. Bc2 {[%clk 0:02:37]} 17... e6 {[%clk 0:02:36.9]} 18. Ba4
{[%clk 0:02:35]} 18... b5 {[%clk 0:02:36.3]} 19. Bc2 {[%clk 0:02:19.1]} 19...
exd5 {[%clk 0:02:35.3]} 20. exd5 {[%clk 0:02:18.5]} 20... Bxd5 {[%clk 0:02:27]}
21. Nf4 {[%clk 0:02:08.3]} 21... Bc6 {[%clk 0:02:24]} 22. Qxd7 {[%clk
0:02:00.7]} 22... Bxd7 {[%clk 0:02:24.9]} 23. Rfd1 {[%clk 0:01:57.5]} 23... Bc6
{[%clk 0:02:13.4]} 24. Bxa7 {[%clk 0:01:47.4]} 24... Bxc3 {[%clk 0:02:01.1]} 25.
Bc5 {[%clk 0:01:27.2]} 25... Rfd8 {[%clk 0:01:48.5]} 26. Be3 {[%clk 0:01:09.7]}
26... Rxd1+ {[%clk 0:01:39.5]} 27. Rxd1 {[%clk 0:01:10.6]} 27... b4 {[%clk
0:01:39.8]} 28. Nd5 {[%clk 0:01:02.3]} 28... Bxd5 {[%clk 0:01:26.2]} 29. Rxd5
{[%clk 0:01:03.2]} 29... b3 {[%clk 0:01:24.9]} 30. Bb1 {[%clk 0:00:54.6]} 30...
Ra8 {[%clk 0:00:50.5]} 31. axb3 {[%clk 0:00:31.5]} 31... Nxb3 {[%clk 0:00:43.2]}
32. Kh2 {[%clk 0:00:30.8]} 32... Bg7 {[%clk 0:00:35.5]} 33. Be4 {[%clk 0:00:28]}
33... Re8 {[%clk 0:00:22.8]} 34. Bc2 {[%clk 0:00:24.8]} 34... Na1 {[%clk
0:00:22.2]} 35. Bd1 {[%clk 0:00:23.9]} 35... c3 {[%clk 0:00:21.3]} 36. Rc5
{[%clk 0:00:23]} 36... Rb8 {[%clk 0:00:19.6]} 37. Kg3 {[%clk 0:00:06.2]} 37...
Rb1 {[%clk 0:00:18.9]} 38. Bf3 {[%clk 0:00:04.8]} 38... Nb3 {[%clk 0:00:18]} 39.
Rc8+ {[%clk 0:00:03.4]} 39... Kh7 {[%clk 0:00:17.9]} 40. Be4 {[%clk 0:00:04.3]}
40... Re1 {[%clk 0:00:16.8]} 41. Kf3 {[%clk 0:00:03.7]} 41... Nd2+ {[%clk
0:00:15.8]} 42. Bxd2 {[%clk 0:00:03.4]} 42... cxd2 {[%clk 0:00:16]} 43. Bc2
{[%clk 0:00:03.8]} 43... Rc1 {[%clk 0:00:14]} 44. Ke2 {[%clk 0:00:01.9]} 44...
d1=Q+ {[%clk 0:00:13.4]} 45. Bxd1 {[%clk 0:00:02.8]} 45... Rxc8 {[%clk
0:00:13.8]} 46. Bb3 {[%clk 0:00:03.4]} 46... Re8+ {[%clk 0:00:13.7]} 47. Kf3
{[%clk 0:00:02.2]} 47... f5 {[%clk 0:00:14.6]} 48. Kf4 {[%clk 0:00:02.2]} 48...
Bf6 {[%clk 0:00:14.4]} 49. g4 {[%clk 0:00:02.7]} 49... Re4+ {[%clk 0:00:14.1]}
50. Kg3 {[%clk 0:00:02.7]} 50... Rxg4+ {[%clk 0:00:14.3]} 51. Kf3 {[%clk
0:00:03.1]} 51... Rb4 {[%clk 0:00:15.2]} 52. Bd5 {[%clk 0:00:03]} 52... Bd4
{[%clk 0:00:15.2]} 53. Kg2 {[%clk 0:00:03.9]} 53... Rb2 {[%clk 0:00:15.3]} 54.
Kg3 {[%clk 0:00:03.8]} 54... Rxf2 {[%clk 0:00:15.4]} 55. Bf3 {[%clk 0:00:03.8]}
55... Ra2 {[%clk 0:00:15]} 56. Kf4 {[%clk 0:00:03.7]} 56... Kg7 {[%clk 0:00:14]}
57. Kg5 {[%clk 0:00:04.1]} 57... Rh2 {[%clk 0:00:11.3]} 58. Bg4 {[%clk
0:00:03.6]} 58... Be3# {[%clk 0:00:11.1]} 0-1

[Event "*** SCC Grand Prix: Titled Tuesday Blitz"]
[Site "Chess.com"]
[Date "2020.06.02"]
[Round "2"]
[White "Xeniya2005"]
[Black "MiroVlasenko"]
[Result "0-1"]
[WhiteElo "2291"]
[BlackElo "2636"]
[TimeControl "180+1"]
[EndTime "10:18:35 PDT"]
[Termination "MiroVlasenko won by resignation"]

1. e4 {[%clk 0:02:47.1]} 1... c5 {[%clk 0:02:58]} 2. Nf3 {[%clk 0:02:46.6]} 2...
a6 {[%clk 0:02:58.3]} 3. d4 {[%clk 0:02:47.1]} 3... cxd4 {[%clk 0:02:58.4]} 4.
Nxd4 {[%clk 0:02:47.2]} 4... Nf6 {[%clk 0:02:58.8]} 5. Nc3 {[%clk 0:02:46.4]}
5... e5 {[%clk 0:02:58.8]} 6. Nf3 {[%clk 0:02:33.2]} 6... Nc6 {[%clk 0:02:58.1]}
7. Bg5 {[%clk 0:02:31.1]} 7... Bb4 {[%clk 0:02:55]} 8. Bd3 {[%clk 0:02:08.2]}
8... d6 {[%clk 0:02:46.2]} 9. h3 {[%clk 0:02:04.1]} 9... Be6 {[%clk 0:02:34.3]}
10. Qd2 {[%clk 0:01:58.2]} 10... Rc8 {[%clk 0:02:29.1]} 11. a3 {[%clk
0:01:47.9]} 11... Bxc3 {[%clk 0:02:12.3]} 12. Qxc3 {[%clk 0:01:44.3]} 12... h6
{[%clk 0:02:02.7]} 13. Be3 {[%clk 0:01:36.1]} 13... Nd4 {[%clk 0:01:58]} 14. Qd2
{[%clk 0:01:34.7]} 14... Nxf3+ {[%clk 0:01:56]} 15. gxf3 {[%clk 0:01:35.6]}
15... Nh5 {[%clk 0:01:52.7]} 16. O-O-O {[%clk 0:01:18.6]} 16... Qe7 {[%clk
0:01:43.5]} 17. f4 {[%clk 0:01:13.2]} 17... exf4 {[%clk 0:01:33.8]} 18. Bxf4
{[%clk 0:01:13]} 18... Nxf4 {[%clk 0:01:33.9]} 19. Qxf4 {[%clk 0:01:12.8]} 19...
Qg5 {[%clk 0:01:30.4]} 20. Qd2 {[%clk 0:01:06.6]} 20... Qxd2+ {[%clk 0:01:27.1]}
21. Kxd2 {[%clk 0:01:05.7]} 21... Ke7 {[%clk 0:01:27.4]} 22. f4 {[%clk
0:01:01.8]} 22... Rhe8 {[%clk 0:01:16.3]} 23. c3 {[%clk 0:00:40.3]} 23... Kf8
{[%clk 0:01:08.7]} 24. Rdg1 {[%clk 0:00:34.2]} 24... Bd7 {[%clk 0:01:00.2]} 25.
Rg3 {[%clk 0:00:26.1]} 25... Bc6 {[%clk 0:00:57.4]} 26. Re1 {[%clk 0:00:25.2]}
26... f6 {[%clk 0:00:55.9]} 27. Rge3 {[%clk 0:00:22.1]} 27... Rc7 {[%clk
0:00:46.4]} 28. b4 {[%clk 0:00:17.6]} 28... Rce7 {[%clk 0:00:45.2]} 29. c4
{[%clk 0:00:16.6]} 29... Bd7 {[%clk 0:00:42.7]} 30. b5 {[%clk 0:00:14.6]} 30...
axb5 {[%clk 0:00:40.3]} 31. cxb5 {[%clk 0:00:15.5]} 31... Ra8 {[%clk 0:00:39.4]}
32. Bc4 {[%clk 0:00:15.5]} 32... Ra4 {[%clk 0:00:37.7]} 33. Rc1 {[%clk
0:00:14.2]} 33... Be8 {[%clk 0:00:34.4]} 34. Bd5 {[%clk 0:00:11.9]} 34... Bxb5
{[%clk 0:00:33.1]} 35. Rc8+ {[%clk 0:00:11]} 35... Re8 {[%clk 0:00:28.5]} 36.
Rc7 {[%clk 0:00:11.2]} 36... Re7 {[%clk 0:00:28.4]} 37. Rxe7 {[%clk 0:00:11.1]}
37... Kxe7 {[%clk 0:00:28.2]} 38. Bxb7 {[%clk 0:00:11.6]} 38... g5 {[%clk
0:00:28.1]} 39. fxg5 {[%clk 0:00:10.5]} 39... fxg5 {[%clk 0:00:26.7]} 40. Bd5
{[%clk 0:00:09.7]} 40... Kf6 {[%clk 0:00:26.7]} 41. Rf3+ {[%clk 0:00:09.4]}
41... Ke5 {[%clk 0:00:26.1]} 42. Rc3 {[%clk 0:00:06.6]} 42... Bd7 {[%clk
0:00:22.7]} 43. Ke3 {[%clk 0:00:06]} 43... h5 {[%clk 0:00:20.3]} 44. Kd2 {[%clk
0:00:03.3]} 44... g4 {[%clk 0:00:20.3]} 45. hxg4 {[%clk 0:00:04]} 45... Bxg4
{[%clk 0:00:20.5]} 46. Ke3 {[%clk 0:00:04.3]} 46... h4 {[%clk 0:00:20.9]} 47.
Bc6 {[%clk 0:00:03.9]} 47... Ra5 {[%clk 0:00:20.5]} 48. a4 {[%clk 0:00:02.8]}
48... h3 {[%clk 0:00:20.2]} 49. Kf2 {[%clk 0:00:01.8]} 49... Kf4 {[%clk
0:00:20.7]} 50. Kg1 {[%clk 0:00:01.5]} 50... Ra7 {[%clk 0:00:20.4]} 51. Kh2
{[%clk 0:00:01.5]} 51... Rg7 {[%clk 0:00:20.1]} 52. Rc4 {[%clk 0:00:01.9]} 52...
Be6 {[%clk 0:00:19.9]} 53. Rc2 {[%clk 0:00:02.5]} 53... Rg3 {[%clk 0:00:19.3]}
54. a5 {[%clk 0:00:02.7]} 54... Ra3 {[%clk 0:00:19]} 55. a6 {[%clk 0:00:02.2]}
55... Rxa6 {[%clk 0:00:18.6]} 56. Rd2 {[%clk 0:00:02.7]} 56... Rxc6 {[%clk
0:00:17.5]} 57. Rf2+ {[%clk 0:00:02.7]} 57... Kxe4 {[%clk 0:00:17.3]} 0-1